bitfinex-derivatives/quotes_ETHF0:USTF0_20251005
["timestamp","ask_amount","ask_price","bid_price","bid_amount"]
[1759658630322,0.8115,4539.0,4538.9,0.39649]
[1759658630521,0.8115,4539.0,4538.9,0.62249]
[1759658630732,0.8115,4539.0,4538.9,0.39649]
[1759658630935,0.225,4539.0,4538.9,0.226]
[1759658631142,0.8115,4539.0,4538.9,0.226]
[1759658631429,0.8112,4538.5,4538.4,3.2078]
[1759658631637,0.8112,4538.5,4538.4,38.20333]
[1759658631933,0.2247,4538.5,4538.4,3.60433]
[1759658632232,0.2247,4539.5,4539.4,0.39644]
[1759658632531,0.2247,4539.5,4539.4,34.99544]
[1759658632731,0.22720141,4540.0,4539.9,0.3964]
[1759658632930,0.22720141,4540.0,4539.9,0.6224]
[1759658633535,0.2247,4539.5,4539.3,0.39645]
[1759658633832,2.86504434,4539.4,4538.3,0.226]
[1759658634035,3.60433,4538.4,4538.3,0.226]
[1759658634334,7.28376469,4538.4,4537.5,0.7844]
[1759658634526,3.7943,4537.9,4537.5,0.5621]
[1759658634732,3.48946469,4537.8,4537.6,0.23]
[1759658634933,0.5865,4537.7,4537.6,0.23223799]
[1759658635330,0.5865,4537.7,4537.6,0.00223799]
[1759658635731,0.5865,4537.7,4537.6,0.23223799]
[1759658636335,4.07596469,4537.7,4537.6,0.00223799]
[1759658637038,4.07596469,4537.7,4537.6,0.23223799]
[1759658637340,3.48946469,4537.7,4537.6,0.00223799]
[1759658637534,4.07596469,4537.7,4537.6,0.00223799]
[1759658637834,4.07596469,4537.7,4537.6,0.22023799]
[1759658638036,4.07596469,4537.7,4536.0,0.23]
[1759658638037,0.5865,4537.1,4536.0,0.23]
[1759658638230,3.2078,4536.2,4536.0,0.84904]
[1759658638434,3.2078,4536.8,4536.6,0.39668]
[1759658638635,3.2078,4536.8,4536.7,5.231]
[1759658639135,3.2078,4537.5,4537.4,0.39662]
[1759658639336,3.2078,4537.5,4537.4,0.62762]
[1759658639631,3.2078,4538.1,4537.4,5.0]
[1759658639833,3.2078,4538.1,4537.9,0.39657]
[1759658640038,3.2078,4538.1,4538.0,0.7931]
[1759658640340,0.5865,4538.0,4537.7,0.95869]
[1759658640536,0.5865,4538.0,4537.0,0.2223]
[1759658640833,3.2078,4537.6,4537.5,0.5621]
[1759658641037,3.2078,4537.6,4537.5,0.7844]
[1759658641229,3.2078,4537.6,4537.4,0.39661]
[1759658641435,3.2078,4537.6,4537.5,0.23]
[1759658641738,3.2078,4537.6,4537.5,0.7921]
[1759658641937,3.21002051,4538.1,4538.0,0.95867]
[1759658642142,5.1e-07,4538.1,4538.0,1.41197]
[1759658642337,0.5865,4539.3,4539.2,0.39646]
[1759658642536,0.5865,4539.3,4539.2,1.18956]
[1759658642537,1.07250937,4539.3,4539.2,1.18956]
[1759658642747,1.07250937,4539.3,4539.1,0.39646]
[1759658643052,3.2078,4539.4,4539.3,0.39645]
[1759658643246,3.6955143,4539.4,4539.3,0.62745]
[1759658643430,3.20952742,4539.4,4539.3,1.18955]
[1759658643833,0.00172742,4539.4,4539.3,6.18955]
[1759658644029,0.00172742,4539.4,4539.1,0.95857]
[1759658644030,0.5865,4539.3,4539.1,0.95857]
[1759658644233,0.5865,4539.3,4539.1,0.39647]
[1759658644541,0.5865,4539.3,4538.5,0.2223]
[1759658644542,3.20952742,4539.4,4539.3,0.5621]
[1759658644740,0.00172742,4539.4,4539.3,0.7931]
[1759658644943,3.79602742,4539.4,4539.3,0.231]
[1759658645135,4.27716461,4539.4,4539.3,0.231]
[1759658645341,0.5865,4539.3,4539.2,0.39646]
[1759658645537,1.06763719,4539.3,4539.2,0.39646]
[1759658645737,0.48113719,4539.3,4539.2,1.18956]
[1759658645940,0.48194591,4539.3,4539.2,0.95856]
[1759658646139,3.20952742,4539.4,4539.3,0.5621]
[1759658646340,3.69152314,4539.4,4539.3,0.7931]
[1759658646840,3.20952742,4539.4,4539.3,0.7931]
[1759658647044,0.00172742,4539.4,4539.3,0.7931]
[1759658647240,0.00172742,4539.4,4539.3,5.7931]
[1759658647639,0.00172742,4539.4,4539.3,35.1701]
[1759658647844,0.00172742,4539.4,4539.3,5.5621]
[1759658648045,0.00172742,4539.4,4539.3,40.1691]
[1759658648636,3.2078,4539.9,4539.3,41.16023]
[1759658648842,3.2078,4540.5,4540.4,0.39636]
[1759658649146,4.27656677,4540.5,4540.4,1.18846]
[1759658649350,3.69006677,4540.5,4540.4,1.18846]
[1759658649544,3.2078,4540.5,4540.4,1.18846]
[1759658649847,3.21005498,4540.5,4540.4,1.19072669]
[1759658650639,3.79655498,4540.5,4540.4,0.39862669]
[1759658650848,3.21005498,4540.5,4540.4,0.62862669]
[1759658651041,3.21005498,4540.5,4540.4,1.19072669]
[1759658651236,0.00225498,4540.5,4540.4,5.96072669]
[1759658651443,0.00225498,4540.5,4540.4,40.56372669]
[1759658652038,0.58875498,4540.5,4540.4,0.39862669]
[1759658652448,0.58875498,4540.5,4540.4,0.62862669]
[1759658652742,0.00225498,4540.5,4540.4,1.19072669]
[1759658653649,0.00225498,4540.5,4540.4,35.56072669]
[1759658654050,0.00225498,4540.5,4540.4,0.96072669]
[1759658654647,0.00225498,4540.5,4540.4,0.00226669]
[1759658654852,0.3964,4539.9,4539.4,0.23]
[1759658655048,3.4325,4539.5,4538.2,3.7699]
[1759658655245,0.5865,4539.2,4538.3,0.23]
[1759658655449,0.5865,4539.2,4538.2,3.7699]
[1759658655450,0.5865,4539.4,4538.7,0.3965]
[1759658655650,0.5865,4539.2,4538.2,3.7699]
[1759658655853,0.5865,4538.9,4538.2,0.00212047]
[1759658656154,0.5865,4538.3,4538.2,0.00212047]
[1759658656345,0.5865,4538.3,4538.2,0.23212047]
[1759658656542,0.5865,4538.3,4538.2,0.00212047]
[1759658656745,0.39659,4537.8,4537.2,0.39663]
[1759658656946,0.5865,4537.4,4537.2,0.39663]
[1759658657252,0.5865,4537.4,4537.3,0.23]
[1759658657446,0.6108,4537.4,4537.2,0.39663]
[1759658657746,0.39667,4536.9,4536.2,3.804]
[1759658657950,0.6108,4536.8,4536.5,0.39669]
[1759658658140,0.6108,4536.8,4536.6,0.23]
[1759658658341,0.6108,4536.8,4536.7,0.23]
[1759658658548,0.00253135,4536.9,4536.8,0.99287]
[1759658658948,0.61333135,4536.9,4536.8,0.62667]
[1759658659246,0.61333135,4536.9,4536.2,3.21020028]
[1759658659449,0.00253135,4536.9,4536.3,0.23]
[1759658659653,0.00253135,4536.9,4536.7,0.39668]
[1759658659955,0.6108,4536.8,4536.2,0.59860028]
[1759658660157,0.6108,4536.8,4536.3,0.39671]
[1759658660446,3.2078,4536.5,4536.2,0.00240028]
[1759658660648,0.6108,4536.4,4536.2,0.00240028]
[1759658660844,3.4459,4536.5,4536.2,0.00240028]
[1759658661041,0.6108,4536.3,4536.2,0.00240028]
[1759658661248,0.6108,4536.3,4536.2,0.23340028]
[1759658661642,0.6108,4536.3,4536.2,0.00240028]
[1759658661854,0.6108,4536.3,4536.2,0.23340028]
[1759658662153,0.6108,4536.3,4536.2,0.00240028]
[1759658662557,0.6108,4536.3,4536.2,0.21040028]
[1759658663547,0.6108,4536.3,4536.2,0.00240028]
[1759658663749,6.00751,4536.3,4536.2,0.00240028]
[1759658664154,0.63485,4536.0,4535.8,0.23]
[1759658664345,0.6108,4535.4,4534.5,3.2078]
[1759658664546,0.39688,4534.4,4533.6,0.39694]
[1759658664752,0.6108,4533.6,4533.5,0.39695]
[1759658665156,0.6108,4533.4,4532.9,0.02206118]
[1759658665355,3.4459,4533.0,4532.9,0.0248809]
[1759658665551,4.0567,4533.0,4532.9,0.0248809]
[1759658665862,9.4537,4533.0,4532.9,0.0248809]
[1759658666058,9.0567,4533.0,4531.2,3.2078]
[1759658666250,3.2078,4531.6,4531.5,0.39714]
[1759658666449,3.2078,4532.2,4532.1,0.99328]
[1759658666655,3.8186,4532.2,4531.7,0.23]
[1759658666852,3.8186,4532.2,4531.0,0.2301]
[1759658666853,3.8186,4532.2,4531.8,0.23]
[1759658667053,0.6108,4531.9,4530.7,3.2078]
[1759658667260,0.6108,4530.7,4530.5,0.62722]
[1759658667459,0.2381,4531.5,4530.5,0.62722]
[1759658667460,4.0567,4532.0,4531.0,0.39718]
[1759658667759,0.6108,4529.9,4529.0,0.39735]
[1759658667961,3.2078,4529.2,4529.0,0.5962]
[1759658668259,0.2381,4529.0,4528.0,3.2078]
[1759658668452,3.2078,4528.7,4528.3,0.23]
[1759658668652,0.00248898,4529.2,4528.7,0.99358]
[1759658668854,0.00248898,4529.2,4528.9,0.39736]
[1759658669054,3.2078,4529.9,4529.7,0.39729]
[1759658669253,0.6108,4529.8,4528.8,34.397]
[1759658669455,3.2078,4529.9,4529.7,0.5962]
[1759658669653,0.6108,4530.5,4530.2,0.39724]
[1759658669854,3.2078,4530.7,4530.5,0.5962]
[1759658670056,0.00264092,4530.5,4530.4,0.99343]
[1759658670455,0.00264092,4530.5,4530.4,1.22543]
[1759658671056,0.6108,4530.4,4530.2,0.00192865]
[1759658671256,0.00264092,4530.5,4530.4,0.5962]
[1759658671856,3.2078,4532.0,4530.6,0.5731]
[1759658672160,3.2078,4532.0,4531.9,0.3971]
[1759658672355,3.8077,4532.0,4531.9,0.232]
[1759658672554,3.8077,4532.0,4531.1,0.5731]
[1759658672555,3.8077,4532.0,4531.4,0.39714]
[1759658672765,3.2078,4532.0,4531.8,0.39711]
[1759658672962,3.21030703,4532.0,4531.9,0.5731]
[1759658673262,3.21030703,4532.0,4531.9,0.8061]
[1759658673560,3.21030703,4532.0,4531.1,0.5731]
[1759658673561,3.81020703,4532.0,4531.1,0.5731]
[1759658673755,3.2078,4531.5,4530.6,0.5731]
[1759658673961,3.2078,4530.8,4530.1,0.5731]
[1759658674157,3.2078,4530.8,4530.1,0.97035]
[1759658674458,3.8077,4530.3,4529.3,0.39733]
[1759658674656,3.8077,4530.3,4529.6,0.3973]
[1759658674861,3.8077,4530.3,4530.2,0.39917865]
[1759658675061,0.5999,4530.2,4529.0,0.5731]
[1759658675263,0.5999,4529.5,4529.4,0.39731]
[1759658675566,3.2078,4529.6,4529.4,1.20341]
[1759658675759,3.2078,4529.6,4529.5,0.5731]
[1759658675960,3.2078,4530.3,4529.5,0.5731]
[1759658676156,3.2078,4530.3,4529.6,0.3973]
[1759658676355,0.5999,4530.2,4529.7,0.233]
[1759658676563,3.8077,4530.3,4530.2,0.39725]
[1759658676765,3.2078,4530.3,4530.2,0.97035]
[1759658676960,3.8077,4530.9,4530.7,0.3972]
[1759658677160,3.8077,4530.9,4530.2,0.233]
[1759658677161,0.5999,4530.8,4530.2,0.233]
[1759658677363,3.8077,4530.3,4530.2,0.233]
[1759658677564,3.2078,4530.3,4530.2,0.233]
[1759658677764,3.8077,4530.3,4530.2,0.233]
[1759658677966,3.1112079,4530.3,4530.2,0.8061]
[1759658678167,0.2355,4532.5,4530.2,0.8061]
[1759658678168,3.2078,4531.3,4531.2,0.39716]
[1759658678466,2.76191,4531.3,4531.2,1.20326]
[1759658678662,3.2078,4531.8,4531.7,0.39712]
[1759658678860,3.2078,4531.8,4531.7,0.97022]
[1759658679067,7.03e-06,4532.0,4531.9,0.9702]
[1759658679266,0.23550703,4532.0,4530.5,0.8094]
[1759658679469,3.2078,4530.6,4530.5,0.39722]
[1759658679763,0.5999,4531.0,4530.6,0.39721]
[1759658679967,3.8077,4531.1,4531.0,0.39718]
[1759658680467,3.2078,4531.1,4530.5,0.5731]
[1759658680664,0.5999,4531.0,4530.6,0.39721]
[1759658680973,0.5999,4531.0,4529.8,3.7809]
[1759658681163,3.2078,4531.1,4530.4,0.39722]
[1759658681365,3.2078,4531.1,4530.1,0.5731]
[1759658681366,3.2078,4531.1,4530.5,0.234]
[1759658681566,0.5999,4531.0,4530.9,0.39718]
[1759658681866,3.2078,4531.1,4530.9,0.39718]
[1759658682065,3.2078,4531.7,4531.1,0.99293]
[1759658682266,7.03e-06,4532.0,4531.9,0.3971]
[1759658682462,7.03e-06,4532.0,4531.9,3.8389]
[1759658682666,7.03e-06,4532.0,4531.9,38.2659]
[1759658682866,7.03e-06,4532.0,4531.9,3.6049]
[1759658683067,7.03e-06,4532.0,4531.9,38.2669]
[1759658683369,3.2078,4533.0,4531.9,8.2078]
[1759658683571,3.2078,4533.0,4532.2,0.5731]
[1759658683773,3.2078,4533.0,4532.8,0.39701]
[1759658683973,3.8077,4533.0,4532.8,0.39701]
[1759658684171,3.81042433,4533.0,4532.9,0.234]
[1759658684375,0.5999,4532.9,4532.8,0.00177109]
[1759658684871,0.5999,4532.8,4531.9,3.60489]
[1759658685066,3.2078,4532.0,4531.6,0.39712]
[1759658685272,3.2078,4532.0,4530.8,3.2078]
[1759658685273,0.5999,4531.9,4530.8,3.2078]
[1759658685469,0.5999,4531.7,4531.1,0.39717]
[1759658685776,0.5999,4531.7,4531.2,0.234]
[1759658686164,0.2355,4531.8,4531.2,0.234]
[1759658686369,3.4433,4531.8,4531.1,0.00229848]
[1759658686568,3.4433,4531.8,4531.2,0.234]
[1759658686767,3.2078,4531.8,4531.6,0.39712]
[1759658687168,3.2078,4532.5,4531.6,1.6158]
[1759658687363,3.2078,4532.5,4532.3,0.39706]
[1759658687564,3.2078,4532.5,4531.6,0.623]
[1759658687565,0.5737,4532.4,4531.6,1.02012]
[1759658687767,0.8093,4532.4,4531.7,0.234]
[1759658687966,0.5737,4532.3,4531.6,0.39712]
[1759658688272,0.5737,4531.9,4531.7,0.39711]
[1759658688472,0.5737,4532.2,4531.9,0.3971]
[1759658688674,3.2078,4532.0,4531.3,0.39715]
[1759658688972,0.5737,4531.9,4531.0,3.2078]
[1759658689169,0.5737,4532.3,4531.6,0.39712]
[1759658689370,0.5737,4532.3,4531.7,0.234]
[1759658689571,0.2356,4532.4,4531.7,0.234]
[1759658689766,0.5737,4532.3,4532.0,0.39709]
[1759658689974,3.2078,4532.5,4531.6,0.39713]
[1759658690167,3.2078,4532.5,4532.3,0.39706]
[1759658690462,3.2078,4532.5,4532.4,0.234]
[1759658690862,3.2078,4532.5,4532.3,0.39706]
[1759658691070,3.2078,4532.5,4532.4,0.857]
[1759658691373,0.00272433,4533.0,4532.9,0.39701]
[1759658691567,0.00272433,4533.0,4532.9,1.02001]
[1759658691767,0.00272433,4533.0,4532.9,1.25401]
[1759658691965,3.2078,4533.9,4533.8,0.39693]
[1759658692274,3.2078,4534.5,4533.9,0.623]
[1759658692570,3.7815,4534.5,4534.2,0.39689]
[1759658692770,0.5737,4534.4,4533.4,0.39697]
[1759658693070,0.5737,4533.9,4533.1,0.39699]
[1759658693277,3.4434,4534.0,4533.0,3.2078]
[1759658693278,0.2356,4533.5,4533.0,3.2078]
[1759658693569,0.5737,4533.0,4532.9,0.234]
[1759658693774,1.26994233,4533.0,4532.1,0.39708]
[1759658694075,3.2078,4533.2,4532.3,0.623]
[1759658694373,0.46065152,4533.1,4532.4,0.623]
[1759658694670,0.5737,4533.1,4532.5,0.235]
[1759658694877,3.2078,4533.2,4533.1,0.39699]
[1759658695070,3.6651008,4533.2,4533.1,1.25499]
[1759658695271,3.6651008,4533.2,4533.1,0.63199]
[1759658695476,3.2078,4534.1,4534.0,0.39692]
[1759658695772,3.66524475,4534.1,4534.0,1.25492]
[1759658695974,0.45744475,4534.1,4534.0,9.46272]
[1759658696280,5.7e-07,4534.4,4534.3,1.01989]
[1759658696474,5.7e-07,4534.4,4534.3,35.44589]
[1759658696776,5.7e-07,4534.4,4534.3,40.44589]
[1759658696969,5.7e-07,4534.4,4534.3,6.01989]
[1759658697174,5.7e-07,4534.4,4534.3,1.02231102]
[1759658697493,5.7e-07,4534.4,4534.3,35.68231102]
[1759658698068,5.7e-07,4534.4,4534.3,1.02231102]
[1759658698478,3.2078,4535.2,4534.4,0.623]
[1759658698666,0.5737,4534.4,4534.3,0.00242102]
[1759658698974,5.5737,4534.4,4534.3,0.13842102]
[1759658699171,0.5737,4534.5,4534.3,0.53530102]
[1759658699365,0.5737,4534.5,4534.3,0.13842102]
[1759658699565,0.00264249,4534.5,4534.4,0.39688]
[1759658699766,0.00264249,4534.5,4534.4,1.01988]
[1759658700374,0.00264249,4534.5,4534.4,1.25488]
[1759658700777,0.5737,4535.5,4535.4,0.39679]
[1759658700969,0.5737,4536.1,4536.0,0.39673]
[1759658701281,3.7815,4537.3,4537.0,0.39665]
[1759658701471,3.2078,4537.3,4536.4,0.623]
[1759658701777,3.2078,4536.5,4535.4,3.2078]
[1759658701975,0.5737,4536.4,4535.7,0.623]
[1759658702173,0.5737,4535.9,4535.8,0.63176]
[1759658702375,3.2078,4535.9,4535.2,0.623]
[1759658702675,3.7815,4536.4,4535.3,3.4428]
[1759658702873,0.5737,4536.3,4536.2,0.39672]
[1759658703078,0.5737,4536.3,4535.1,0.99204]
[1759658703079,0.5737,4535.8,4534.5,0.623]
[1759658703375,3.2078,4535.9,4535.5,0.39678]
[1759658703584,0.5737,4535.8,4535.7,0.39676]
[1759658703772,3.2078,4536.4,4536.1,0.39673]
[1759658704073,0.5737,4536.3,4535.0,0.623]
[1759658704274,3.2078,4536.3,4536.2,0.39672]
[1759658704465,0.5737,4536.8,4536.6,0.39668]
[1759658704668,0.5737,4536.8,4536.7,0.235]
[1759658704871,3.2078,4537.1,4537.0,0.39665]
[1759658705068,0.0015874,4537.3,4537.2,0.39664]
[1759658705273,3.2078,4537.8,4537.2,1.0933]
[1759658705481,0.022,4537.9,4537.8,0.623]
[1759658705674,0.022,4537.9,4537.8,0.858]
[1759658705983,0.9703,4537.7,4537.0,0.235]
[1759658706277,0.00230074,4537.7,4537.5,0.623]
[1759658706477,0.00230074,4537.7,4537.5,0.39661]
[1759658706677,0.00230074,4537.7,4537.6,0.623]
[1759658706974,0.00230074,4537.7,4537.6,0.858]
[1759658707173,0.022,4537.9,4537.7,0.39659]
[1759658707369,3.7815,4539.3,4537.9,0.623]
[1759658707574,9.90808,4540.9,4538.0,0.235]
[1759658707575,0.2356,4538.4,4538.0,0.235]
[1759658707772,0.5737,4538.3,4537.8,0.39658]
[1759658707970,0.5737,4538.3,4538.0,0.39657]
[1759658708177,0.00198552,4538.3,4538.0,0.623]
[1759658708368,0.00198552,4538.3,4538.1,0.39656]
[1759658708772,0.00198552,4538.3,4538.1,0.39655]
[1759658709173,0.5737,4538.2,4537.9,3.2078]
[1759658709369,0.97222552,4538.3,4537.5,0.623]
[1759658709573,0.57568552,4538.3,4537.9,0.39657]
[1759658709875,0.00198552,4538.3,4538.0,0.39656]
[1759658710078,0.57568552,4538.3,4538.1,0.39655]
[1759658710279,0.57568552,4538.3,4537.2,0.2353]
[1759658710481,3.2078,4537.4,4537.3,0.623]
[1759658710772,0.5737,4537.8,4537.3,0.63162]
[1759658710974,3.2078,4537.9,4537.3,0.235]
[1759658711282,0.5737,4537.8,4537.4,0.235]
[1759658711782,0.5737,4537.8,4537.6,0.39659]
[1759658712072,3.2078,4537.9,4537.7,0.63159]
[1759658712275,3.2078,4537.9,4537.8,0.623]
[1759658712581,3.2078,4537.9,4537.8,1.25458]
[1759658712777,0.5737,4537.8,4537.0,0.23727688]
[1759658712976,0.5737,4537.8,4537.1,0.235]
[1759658713278,3.7815,4537.2,4537.1,0.39664]
[1759658713581,0.5737,4537.1,4537.0,0.00197688]
[1759658713979,0.5737,4537.1,4537.0,0.23697688]
[1759658714578,3.2078,4537.2,4537.1,1.01964]
[1759658714779,3.60444,4537.2,4537.0,0.00197688]
[1759658714983,0.5737,4537.1,4537.0,0.00197688]
[1759658715484,0.5737,4537.1,4537.0,0.23697688]
[1759658715783,0.5737,4537.1,4537.0,0.00197688]
[1759658716179,0.5737,4537.1,4537.0,0.23697688]
[1759658716879,3.2078,4537.2,4537.1,0.39664]
[1759658717082,0.5737,4537.1,4537.0,0.39862688]
[1759658717278,0.5737,4537.1,4537.0,0.00197688]
[1759658717482,0.2345,4537.0,4535.8,0.39675]
[1759658717778,3.2078,4536.2,4536.0,0.39674]
[1759658717984,3.2078,4536.2,4536.1,0.5737]
[1759658718387,3.8283,4537.1,4536.1,3.78359651]
[1759658718687,3.2078,4537.1,4537.0,0.5737]
[1759658718987,3.2078,4537.1,4537.0,0.8077]
[1759658719589,1.01716,4537.0,4536.1,3.78359651]
[1759658719880,0.6205,4537.0,4536.8,0.39667]
[1759658720079,3.2078,4537.1,4537.0,0.39665]
[1759658720285,3.2078,4537.1,4537.0,1.20435]
[1759658720484,0.39659,4537.7,4537.0,0.8077]
[1759658720788,3.2078,4537.8,4537.6,0.39659]
[1759658720987,3.2078,4537.8,4537.7,0.234]
[1759658721881,3.2078,4537.8,4537.7,0.8077]
[1759658722082,0.6205,4538.4,4538.2,0.39655]
[1759658722282,3.2078,4538.5,4538.2,0.97025]
[1759658722778,0.62248552,4538.3,4538.0,0.234]
[1759658722983,0.00198552,4538.3,4538.1,0.234]
[1759658723290,0.00198552,4538.3,4538.2,0.8077]
[1759658723481,0.00198552,4538.3,4538.2,0.234]
[1759658723685,0.62248552,4538.3,4538.2,0.234]
[1759658724278,0.62248552,4538.3,4537.5,0.8013]
[1759658724487,0.62248552,4538.3,4537.6,0.63059]
[1759658724685,0.00198552,4538.3,4537.4,3.2078]
[1759658724884,0.6205,4538.0,4537.6,0.39659]
[1759658725083,3.8283,4538.1,4537.4,3.2078]
[1759658725287,0.68745109,4538.0,4536.7,3.2078]
[1759658725489,0.6205,4537.8,4536.8,0.234]
[1759658725789,0.6205,4537.8,4536.9,0.39666]
[1759658725989,0.6205,4537.8,4536.8,0.234]
[1759658726186,3.2078,4537.6,4536.8,0.234]
[1759658726487,3.8283,4537.6,4537.4,0.39662]
[1759658726691,3.8283,4537.6,4537.5,0.8077]
[1759658726692,3.2078,4537.6,4537.5,0.8077]
[1759658726986,0.62248552,4538.3,4538.1,0.39655]
[1759658727291,0.62248552,4538.3,4538.2,0.234]
[1759658727491,0.00198552,4538.3,4538.2,0.234]
[1759658727686,0.00198552,4538.3,4538.2,0.8077]
[1759658730485,0.00198552,4538.3,4538.1,0.39655]
[1759658730789,0.00198552,4538.3,4538.2,4.0155]
[1759658731192,0.00198552,4538.3,4538.2,3.7815]
[1759658731391,0.00198552,4538.3,4538.2,43.4035]
[1759658731591,2.2,4539.5,4538.3,0.5844]
[1759658731893,2.2,4539.5,4539.4,0.98084]
[1759658732093,2.2,4539.5,4539.4,1.21484]
[1759658732686,0.00233116,4539.5,4539.4,1.2163841]
[1759658733283,0.00233116,4539.5,4539.4,5.9823841]
[1759658733489,0.00233116,4539.5,4539.4,40.6033841]
[1759658734089,1.16e-06,4539.5,4539.4,40.6033841]
[1759658734591,1.16e-06,4539.5,4539.4,40.6013841]
[1759658734996,1.16e-06,4539.5,4539.4,5.9823841]
[1759658735185,1.16e-06,4539.5,4539.4,40.5993841]
[1759658735593,1.16e-06,4539.5,4539.4,5.9823841]
[1759658735790,1.16e-06,4539.5,4539.4,40.5983841]
[1759658736487,1.16e-06,4539.5,4539.4,5.9823841]
[1759658736793,1.16e-06,4539.5,4539.4,40.5973841]
[1759658736995,3.2078,4540.8,4540.7,0.98073]
[1759658737184,4.24938045,4540.8,4540.7,0.62933]
[1759658737389,3.65588045,4540.8,4540.7,0.39633]
[1759658737689,3.65588045,4540.8,4540.5,0.39634]
[1759658737886,0.5935,4540.6,4540.3,0.39636]
[1759658738088,0.5935,4540.7,4540.5,0.39634]
[1759658738596,0.5935,4540.7,4540.6,0.233]
[1759658738792,0.44762342,4540.7,4540.6,0.233]
[1759658738998,0.44762342,4540.7,4540.6,0.8174]
[1759658739197,0.00217762,4540.8,4540.7,0.98073]
[1759658740003,0.59567762,4540.8,4540.2,0.5844]
[1759658740199,0.59567762,4540.8,4540.6,0.39633]
[1759658740400,0.59567762,4540.8,4540.7,0.233]
[1759658740700,0.00217762,4540.8,4540.7,0.8174]
[1759658740897,0.59567762,4540.8,4540.7,0.233]
[1759658741203,8.80347762,4540.8,4540.7,0.233]
[1759658741895,8.80347762,4540.8,4539.9,0.39639]
[1759658741896,0.5935,4540.7,4539.9,0.39639]
[1759658742091,0.5935,4540.7,4539.7,0.5844]
[1759658742293,3.20997762,4540.8,4539.5,3.2078]
[1759658742294,0.2369,4540.0,4539.5,3.2078]
[1759658742493,3.2078,4540.3,4540.2,0.5844]
[1759658742700,3.8013,4540.4,4540.2,0.8174]
[1759658742894,3.8013,4540.4,4540.2,1.21377]
[1759658743394,0.00217762,4540.8,4540.7,0.39633]
[1759658743701,0.00217762,4540.8,4540.7,0.233]
[1759658743902,0.59567762,4540.8,4540.7,0.233]
[1759658744104,0.59567762,4540.8,4540.3,0.39636]
[1759658744305,0.5935,4540.7,4540.5,0.39634]
[1759658744800,5.5935,4540.7,4540.0,3.2078]
[1759658745098,0.98983,4540.7,4540.0,3.2078]
[1759658745303,0.5935,4540.7,4540.3,0.39636]
[1759658745493,0.00217762,4540.8,4540.4,0.233]
[1759658745890,0.98983,4540.7,4540.4,0.233]
[1759658746094,0.00217762,4540.8,4540.5,0.39635]
[1759658746295,0.00217762,4540.8,4540.7,0.5844]
[1759658746694,0.5935,4540.7,4540.6,0.39634]
[1759658747100,0.00217762,4540.8,4540.7,0.5844]
[1759658748100,0.00217762,4540.8,4540.7,0.8174]
[1759658748699,0.00217762,4540.8,4540.7,0.5844]
[1759658748903,0.58347762,4540.8,4540.7,0.233]
[1759658749301,0.5813,4540.7,4540.1,0.5761]
[1759658749502,0.5813,4540.7,4540.5,0.39635]
[1759658749696,0.5813,4540.7,4540.5,0.97245]
[1759658749903,0.5813,4540.7,4540.6,0.233]
[1759658750092,0.00217762,4540.8,4540.6,0.233]
[1759658750093,0.00217762,4540.8,4540.7,0.97243]
[1759658750298,0.00217762,4540.8,4540.0,3.4343]
[1759658750499,0.5813,4540.3,4539.5,3.4343]
[1759658750698,0.39637,4540.3,4539.9,0.3964]
[1759658751004,3.2078,4540.4,4540.2,0.39637]
[1759658751202,0.5813,4540.3,4540.1,0.39638]
[1759658751501,3.2078,4540.4,4540.2,0.39637]
[1759658751808,3.2078,4540.4,4540.3,0.5761]
[1759658752010,0.00217762,4540.8,4540.7,0.39633]
[1759658752201,0.00217762,4540.8,4540.7,1.20543]
[1759658752509,0.00217762,4540.8,4540.0,1.22479]
[1759658752510,4.18759762,4540.8,4539.8,1.56711]
[1759658752707,3.20997762,4540.8,4540.6,0.97244]
[1759658752907,3.20997762,4540.8,4540.7,0.233]
[1759658753097,3.20997762,4540.8,4540.7,0.8091]
[1759658753304,0.00217762,4540.8,4540.7,0.8091]
[1759658753499,0.00217762,4540.8,4540.2,4.19872]
[1759658753500,0.58347762,4540.8,4540.2,3.2078]
[1759658753706,0.5813,4540.7,4540.6,0.39634]
[1759658753904,3.20997762,4540.8,4540.7,0.5761]
[1759658754109,0.00217762,4540.8,4540.7,0.5761]
[1759658756103,0.00217762,4540.8,4540.7,0.8081]
[1759658756699,0.00217762,4540.8,4540.7,4.0159]
[1759658757202,0.00217762,4540.8,4540.7,9.0159]
[1759658757401,0.00217762,4540.8,4540.7,4.0159]
[1759658758005,3.2078,4541.9,4541.8,0.97233]
[1759658758210,3.2078,4541.9,4541.8,1.20433]
[1759658758810,3.2078,4542.4,4541.8,0.8081]
[1759658759115,0.5813,4542.2,4541.9,0.5761]
[1759658759306,0.5813,4542.2,4541.9,0.97232]
[1759658759506,3.21064459,4542.4,4542.1,0.39621]
[1759658759710,3.21064459,4542.4,4541.8,0.232]
[1759658759711,0.4477009,4542.3,4542.2,0.9723]
[1759658760011,0.00284459,4542.4,4542.3,0.5761]
[1759658760406,0.00284459,4542.4,4542.3,0.234]
[1759658760716,0.00284459,4542.4,4542.3,0.8101]
[1759658761207,0.00284459,4542.4,4542.3,0.5761]
[1759658761408,0.00284459,4542.4,4542.3,0.8101]
[1759658762017,0.00284459,4542.4,4542.3,0.5761]
[1759658762411,0.00284459,4542.4,4542.3,0.8101]
[1759658762613,0.00284459,4542.4,4542.3,0.5761]
[1759658762815,0.00284459,4542.4,4542.3,0.8101]
[1759658763010,0.00284459,4542.4,4542.3,0.5761]
[1759658763218,0.00284459,4542.4,4542.3,4.0169]
[1759658763711,0.00284459,4542.4,4542.3,3.7839]
[1759658763919,4.59e-06,4542.4,4542.3,9.0169]